[Event "Titled Tuesday Blitz May 23 Late 2023"]
[White "Vaglio Munoz, Jaime"]
[Black "Toncheva, Nadya"]
[WhiteFideId "6500145"]
[BlackFideId "2924056"]
[WhiteElo "2199"]
[BlackElo "2101"]
[Result "0-1"]
[Round "08"]
[TimeControl "180+2"]
[Date "2023.05.23"]
[WhiteClock "0:00:00"]
[BlackClock "0:00:51"]

1. Nf3 {[%clk 0:03:00]}  c5 {[%clk 0:03:00]} 2. c4 {[%clk 0:03:00]}  Nc6 {[%clk 0:03:00]} 3. b3 {[%clk 0:03:00]}  e5 {[%clk 0:02:59]} 4. Bb2 {[%clk 0:03:00]}  d6 {[%clk 0:03:00]} 5. d3 {[%clk 0:02:59]}  g6 {[%clk 0:03:00]} 6. g3 {[%clk 0:02:59]}  Bg7 {[%clk 0:03:01]} 7. Bg2 {[%clk 0:02:59]}  Nge7 {[%clk 0:03:02]} 8. O-O {[%clk 0:02:59]}  O-O {[%clk 0:03:02]} 9. a3 {[%clk 0:02:59]}  h6 {[%clk 0:03:00]} 10. Ra2 {[%clk 0:02:59]}  Be6 {[%clk 0:03:01]} 11. Nc3 {[%clk 0:02:58]}  d5 {[%clk 0:02:57]} 12. cxd5 {[%clk 0:02:58]}  Nxd5 {[%clk 0:02:57]} 13. Na4 {[%clk 0:02:46]}  Qe7 {[%clk 0:02:52]} 14. e3 {[%clk 0:02:40]}  Rac8 {[%clk 0:02:48]} 15. d4 {[%clk 0:02:33]}  cxd4 {[%clk 0:02:24]} 16. exd4 {[%clk 0:02:34]}  e4 {[%clk 0:01:58]} 17. Ne5 {[%clk 0:02:30]}  Nxe5 {[%clk 0:01:55]} 18. dxe5 {[%clk 0:02:31]}  b5 {[%clk 0:01:55]} 19. Bxe4 {[%clk 0:02:21]}  Rfd8 {[%clk 0:01:55]} 20. Qf3 {[%clk 0:01:48]}  bxa4 {[%clk 0:01:53]} 21. bxa4 {[%clk 0:01:34]}  Ne3 {[%clk 0:01:39]} 22. Qxe3 {[%clk 0:01:26]}  Bxa2 {[%clk 0:01:39]} 23. f4 {[%clk 0:01:21]}  Qc5 {[%clk 0:01:36]} 24. Kf2 {[%clk 0:01:09]}  Qxe3+ {[%clk 0:01:35]} 25. Kxe3 {[%clk 0:01:09]}  Bd5 {[%clk 0:01:31]} 26. Bd3 {[%clk 0:01:06]}  Bc4 {[%clk 0:01:29]} 27. Bxc4 {[%clk 0:00:55]}  Rxc4 {[%clk 0:01:30]} 28. Rf2 {[%clk 0:00:47]}  Rxa4 {[%clk 0:01:29]} 29. g4 {[%clk 0:00:46]}  Rb8 {[%clk 0:01:24]} 30. Bd4 {[%clk 0:00:19]}  Rb3+ {[%clk 0:01:21]} 31. Ke4 {[%clk 0:00:18]}  Rbxa3 {[%clk 0:01:13]} 32. f5 {[%clk 0:00:16]}  gxf5+ {[%clk 0:01:09]} 33. gxf5 {[%clk 0:00:17]}  Ra2 {[%clk 0:01:06]} 34. Rxa2 {[%clk 0:00:10]}  Rxa2 {[%clk 0:01:06]} 35. f6 {[%clk 0:00:10]}  Bf8 {[%clk 0:01:05]} 36. Be3 {[%clk 0:00:10]}  a5 {[%clk 0:01:04]} 37. Bd4 {[%clk 0:00:07]}  a4 {[%clk 0:01:04]} 38. h4 {[%clk 0:00:07]}  a3 {[%clk 0:01:05]} 39. h5 {[%clk 0:00:08]}  Rh2 {[%clk 0:01:02]} 40. Kf5 {[%clk 0:00:07]}  Rxh5+ {[%clk 0:01:01]} 41. Kg4 {[%clk 0:00:07]}  Rg5+ {[%clk 0:01:01]} 42. Kf4 {[%clk 0:00:07]}  a2 {[%clk 0:01:01]} 43. Ba1 {[%clk 0:00:07]}  Rg1 {[%clk 0:01:01]} 44. e6 {[%clk 0:00:06]}  fxe6 {[%clk 0:00:56]} 45. Be5 {[%clk 0:00:05]}  Kf7 {[%clk 0:00:53]} 46. Bd4 {[%clk 0:00:05]}  Rf1+ {[%clk 0:00:52]} 47. Ke4 {[%clk 0:00:04]}  h5 {[%clk 0:00:51]} 48. Ke3 {[%clk 0:00:02]}  h4 {[%clk 0:00:51]} 49. Ke2 {[%clk 0:00:00]}  Rf5 {[%clk 0:00:51]} 0-1


[Site "https://www.chess.com"]

[Event "Titled Tuesday Blitz May 23 Late 2023"]
[White "Liu, Casper"]
[Black "Evdokimov, Alexey"]
[WhiteFideId "1454153"]
[BlackFideId "24162450"]
[WhiteElo "2221"]
[BlackElo "2154"]
[Result "0-1"]
[Round "08"]
[TimeControl "180+2"]
[Date "2023.05.23"]
[WhiteClock "0:01:23"]
[BlackClock "0:00:07"]

1. d4 {[%clk 0:03:00]}  Nf6 {[%clk 0:02:59]} 2. Bf4 {[%clk 0:02:59]}  d5 {[%clk 0:02:54]} 3. Qd3 {[%clk 0:02:59]}  e6 {[%clk 0:02:50]} 4. Nd2 {[%clk 0:02:59]}  Be7 {[%clk 0:02:46]} 5. O-O-O {[%clk 0:02:59]}  O-O {[%clk 0:02:45]} 6. g4 {[%clk 0:02:59]}  c5 {[%clk 0:02:38]} 7. g5 {[%clk 0:02:48]}  Nfd7 {[%clk 0:02:28]} 8. h4 {[%clk 0:02:45]}  cxd4 {[%clk 0:02:29]} 9. Ngf3 {[%clk 0:02:39]}  Nc6 {[%clk 0:02:27]} 10. Nxd4 {[%clk 0:02:33]}  e5 {[%clk 0:02:17]} 11. Nxc6 {[%clk 0:02:34]}  bxc6 {[%clk 0:02:16]} 12. Bg3 {[%clk 0:02:33]}  Qa5 {[%clk 0:02:05]} 13. Kb1 {[%clk 0:02:29]}  Rb8 {[%clk 0:02:05]} 14. Nb3 {[%clk 0:02:29]}  Qa4 {[%clk 0:01:59]} 15. e4 {[%clk 0:02:22]}  d4 {[%clk 0:01:44]} 16. f4 {[%clk 0:02:07]}  c5 {[%clk 0:01:21]} 17. fxe5 {[%clk 0:02:04]}  Nb6 {[%clk 0:01:19]} 18. c4 {[%clk 0:01:57]}  Be6 {[%clk 0:01:10]} 19. Rc1 {[%clk 0:01:56]}  Rb7 {[%clk 0:00:51]} 20. Nd2 {[%clk 0:01:56]}  Rfb8 {[%clk 0:00:42]} 21. b3 {[%clk 0:01:54]}  Nxc4 {[%clk 0:00:23]} 22. Nxc4 {[%clk 0:01:45]}  Rxb3+ {[%clk 0:00:19]} 23. axb3 {[%clk 0:01:46]}  Rxb3+ {[%clk 0:00:20]} 24. Qxb3 {[%clk 0:01:47]}  Qxb3+ {[%clk 0:00:20]} 25. Nb2 {[%clk 0:01:47]}  Qxg3 {[%clk 0:00:16]} 26. Bd3 {[%clk 0:01:43]}  Qxe5 {[%clk 0:00:16]} 27. Nc4 {[%clk 0:01:41]}  Bxc4 {[%clk 0:00:15]} 28. Rxc4 {[%clk 0:01:41]}  g6 {[%clk 0:00:14]} 29. Kc2 {[%clk 0:01:40]}  Qc7 {[%clk 0:00:13]} 30. Ra1 {[%clk 0:01:38]}  Qh2+ {[%clk 0:00:12]} 31. Kc1 {[%clk 0:01:32]}  Qg1+ {[%clk 0:00:11]} 32. Kb2 {[%clk 0:01:33]}  Qe3 {[%clk 0:00:10]} 33. Rd1 {[%clk 0:01:27]}  Qf2+ {[%clk 0:00:10]} 34. Rc2 {[%clk 0:01:28]}  Qxh4 {[%clk 0:00:10]} 35. Ra1 {[%clk 0:01:27]}  Qxg5 {[%clk 0:00:09]} 36. Rxa7 {[%clk 0:01:28]}  Qe3 {[%clk 0:00:09]} 37. Bc4 {[%clk 0:01:26]}  Qxe4 {[%clk 0:00:08]} 38. Rf2 {[%clk 0:01:24]}  Qe3 {[%clk 0:00:06]} 39. Rxf7 {[%clk 0:01:19]}  Qc3+ {[%clk 0:00:06]} 40. Kb1 {[%clk 0:01:19]}  Qe1+ {[%clk 0:00:05]} 41. Ka2 {[%clk 0:01:17]}  Qd2+ {[%clk 0:00:04]} 42. Ka3 {[%clk 0:01:16]}  Qb4+ {[%clk 0:00:04]} 43. Ka2 {[%clk 0:01:16]}  Qxc4+ {[%clk 0:00:05]} 44. Kb2 {[%clk 0:01:16]}  Qxf7 {[%clk 0:00:06]} 45. Ra8+ {[%clk 0:01:17]}  Kg7 {[%clk 0:00:06]} 46. Ra7 {[%clk 0:01:18]}  Qf2+ {[%clk 0:00:06]} 47. Ka3 {[%clk 0:01:18]}  Kf6 {[%clk 0:00:06]} 48. Ka4 {[%clk 0:01:19]}  c4 {[%clk 0:00:06]} 49. Kb5 {[%clk 0:01:20]}  Qf5+ {[%clk 0:00:06]} 50. Kc6 {[%clk 0:01:21]}  Qe6+ {[%clk 0:00:06]} 51. Kc7 {[%clk 0:01:21]}  Qd6+ {[%clk 0:00:06]} 52. Kc8 {[%clk 0:01:21]}  Qe6+ {[%clk 0:00:06]} 53. Kb7 {[%clk 0:01:22]}  c3 {[%clk 0:00:07]} 54. Ka8 {[%clk 0:01:22]}  d3 {[%clk 0:00:07]} 55. Rc7 {[%clk 0:01:23]}  c2 {[%clk 0:00:07]} 56. Kb8 {[%clk 0:01:24]}  d2 {[%clk 0:00:07]} 57. Kb7 {[%clk 0:01:24]}  d1=Q {[%clk 0:00:07]} 58. Kb8 {[%clk 0:01:24]}  Qd8+ {[%clk 0:00:07]} 59. Kb7 {[%clk 0:01:24]}  Qxc7+ {[%clk 0:00:07]} 60. Ka8 {[%clk 0:01:23]}  Qa6# {[%clk 0:00:07]} 0-1


[Site "https://www.chess.com"]

[Event "Titled Tuesday Blitz May 23 Late 2023"]
[White "Figorito, Nick"]
[Black "Moral Garcia, Serafin"]
[WhiteFideId "30923689"]
[BlackFideId "2201925"]
[WhiteElo "2368"]
[BlackElo "2274"]
[Result "1-0"]
[Round "08"]
[TimeControl "180+2"]
[Date "2023.05.23"]
[WhiteClock "0:02:33"]
[BlackClock "0:01:38"]

1. Nf3 {[%clk 0:03:00]}  Nf6 {[%clk 0:02:58]} 2. g3 {[%clk 0:02:59]}  g6 {[%clk 0:02:58]} 3. Bg2 {[%clk 0:02:59]}  Bg7 {[%clk 0:02:59]} 4. O-O {[%clk 0:03:00]}  O-O {[%clk 0:02:59]} 5. c4 {[%clk 0:03:01]}  c5 {[%clk 0:02:57]} 6. d4 {[%clk 0:03:00]}  cxd4 {[%clk 0:02:56]} 7. Nxd4 {[%clk 0:03:01]}  Nc6 {[%clk 0:02:56]} 8. Nc2 {[%clk 0:03:01]}  d6 {[%clk 0:02:55]} 9. Nc3 {[%clk 0:03:01]}  Be6 {[%clk 0:02:56]} 10. b3 {[%clk 0:03:02]}  Qd7 {[%clk 0:02:56]} 11. Bb2 {[%clk 0:03:02]}  Bh3 {[%clk 0:02:56]} 12. Qd2 {[%clk 0:03:02]}  Bxg2 {[%clk 0:02:56]} 13. Kxg2 {[%clk 0:03:03]}  Rfd8 {[%clk 0:02:51]} 14. Ne3 {[%clk 0:03:03]}  Ng4 {[%clk 0:02:46]} 15. Nxg4 {[%clk 0:02:54]}  Qxg4 {[%clk 0:02:46]} 16. Nd5 {[%clk 0:02:51]}  e6 {[%clk 0:02:36]} 17. Nf6+ {[%clk 0:02:32]}  Bxf6 {[%clk 0:01:38]} 18. Bxf6 {[%clk 0:02:33]} 1-0


[Site "https://www.chess.com"]

[Event "Titled Tuesday Blitz May 23 Late 2023"]
[White "Kaplan, Avi Harrison"]
[Black "Alexikov, Alexander"]
[WhiteFideId "30934559"]
[BlackFideId "14103958"]
[WhiteElo "1983"]
[BlackElo "2186"]
[Result "0-1"]
[Round "08"]
[TimeControl "180+2"]
[Date "2023.05.23"]
[WhiteClock "0:00:10"]
[BlackClock "0:00:18"]

1. d4 {[%clk 0:02:59]}  Nf6 {[%clk 0:02:59]} 2. c3 {[%clk 0:02:59]}  g6 {[%clk 0:02:59]} 3. g3 {[%clk 0:02:58]}  Bg7 {[%clk 0:02:59]} 4. Bg2 {[%clk 0:02:58]}  d5 {[%clk 0:02:57]} 5. Nh3 {[%clk 0:02:58]}  O-O {[%clk 0:02:56]} 6. Nf4 {[%clk 0:02:59]}  c6 {[%clk 0:02:56]} 7. h4 {[%clk 0:02:59]}  h6 {[%clk 0:02:55]} 8. h5 {[%clk 0:02:58]}  g5 {[%clk 0:02:54]} 9. Nd3 {[%clk 0:02:58]}  Nbd7 {[%clk 0:02:53]} 10. f4 {[%clk 0:02:58]}  g4 {[%clk 0:02:46]} 11. Ne5 {[%clk 0:02:54]}  Nxe5 {[%clk 0:02:40]} 12. fxe5 {[%clk 0:02:55]}  Ne4 {[%clk 0:02:40]} 13. Bf4 {[%clk 0:02:48]}  Bf5 {[%clk 0:02:37]} 14. Nd2 {[%clk 0:02:42]}  Nxd2 {[%clk 0:02:33]} 15. Qxd2 {[%clk 0:02:31]}  Kh7 {[%clk 0:02:33]} 16. O-O {[%clk 0:02:14]}  e6 {[%clk 0:02:32]} 17. Rae1 {[%clk 0:01:53]}  f6 {[%clk 0:02:25]} 18. e4 {[%clk 0:01:52]}  dxe4 {[%clk 0:02:24]} 19. Rxe4 {[%clk 0:01:52]}  fxe5 {[%clk 0:02:24]} 20. Bxe5 {[%clk 0:01:44]}  Qe8 {[%clk 0:02:02]} 21. Bxg7 {[%clk 0:01:34]}  Kxg7 {[%clk 0:02:01]} 22. Rxf5 {[%clk 0:01:33]}  Rxf5 {[%clk 0:02:00]} 23. Rxg4+ {[%clk 0:01:33]}  Kh7 {[%clk 0:01:54]} 24. Rg6 {[%clk 0:01:23]}  Rxh5 {[%clk 0:01:52]} 25. Be4 {[%clk 0:01:23]}  Qxg6 {[%clk 0:01:51]} 26. Bxg6+ {[%clk 0:01:20]}  Kxg6 {[%clk 0:01:51]} 27. Qd3+ {[%clk 0:01:18]}  Kg7 {[%clk 0:01:51]} 28. Qe4 {[%clk 0:01:09]}  Re8 {[%clk 0:01:47]} 29. Qf4 {[%clk 0:01:05]}  Re7 {[%clk 0:01:43]} 30. Kg2 {[%clk 0:01:02]}  e5 {[%clk 0:01:34]} 31. Qe4 {[%clk 0:00:59]}  Kf6 {[%clk 0:01:29]} 32. dxe5+ {[%clk 0:00:45]}  Rhxe5 {[%clk 0:01:28]} 33. Qf4+ {[%clk 0:00:45]}  Kg6 {[%clk 0:01:28]} 34. Qg4+ {[%clk 0:00:45]}  Rg5 {[%clk 0:01:27]} 35. Qc4 {[%clk 0:00:44]}  c5 {[%clk 0:01:20]} 36. Qg8+ {[%clk 0:00:43]}  Kf6 {[%clk 0:01:19]} 37. Qf8+ {[%clk 0:00:40]}  Rf7 {[%clk 0:01:18]} 38. Qxh6+ {[%clk 0:00:40]}  Kf5 {[%clk 0:01:18]} 39. Qh3+ {[%clk 0:00:41]}  Kg6 {[%clk 0:01:17]} 40. Qe6+ {[%clk 0:00:41]}  Kg7 {[%clk 0:01:15]} 41. Qe4 {[%clk 0:00:40]}  b6 {[%clk 0:01:13]} 42. b4 {[%clk 0:00:38]}  cxb4 {[%clk 0:01:12]} 43. cxb4 {[%clk 0:00:39]}  a5 {[%clk 0:01:06]} 44. Qd4+ {[%clk 0:00:37]}  Rf6 {[%clk 0:01:06]} 45. Qd7+ {[%clk 0:00:35]}  Kh6 {[%clk 0:01:04]} 46. Qd8 {[%clk 0:00:31]}  Rf7 {[%clk 0:01:00]} 47. Qxb6+ {[%clk 0:00:29]}  Rg6 {[%clk 0:01:00]} 48. Qe3+ {[%clk 0:00:28]}  Kh7 {[%clk 0:00:59]} 49. b5 {[%clk 0:00:27]}  a4 {[%clk 0:00:57]} 50. Qe4 {[%clk 0:00:25]}  Rg7 {[%clk 0:00:53]} 51. Qh4+ {[%clk 0:00:20]}  Rh6 {[%clk 0:00:51]} 52. Qe4+ {[%clk 0:00:17]}  Rhg6 {[%clk 0:00:51]} 53. b6 {[%clk 0:00:17]}  Kh8 {[%clk 0:00:47]} 54. Qe8+ {[%clk 0:00:12]}  Kh7 {[%clk 0:00:46]} 55. Qe5 {[%clk 0:00:09]}  Rxb6 {[%clk 0:00:43]} 56. Qh5+ {[%clk 0:00:09]}  Rh6 {[%clk 0:00:43]} 57. Qd1 {[%clk 0:00:08]}  Rhg6 {[%clk 0:00:43]} 58. Qd3 {[%clk 0:00:08]}  Kh8 {[%clk 0:00:41]} 59. Qd8+ {[%clk 0:00:06]}  Kh7 {[%clk 0:00:41]} 60. Qh4+ {[%clk 0:00:07]}  Kg8 {[%clk 0:00:40]} 61. Qc4+ {[%clk 0:00:06]}  Kh7 {[%clk 0:00:40]} 62. Qe4 {[%clk 0:00:04]}  Kg8 {[%clk 0:00:39]} 63. Qa8+ {[%clk 0:00:04]}  Kh7 {[%clk 0:00:39]} 64. Kh2 {[%clk 0:00:03]}  Rxg3 {[%clk 0:00:37]} 65. Qxa4 {[%clk 0:00:03]}  R3g4 {[%clk 0:00:37]} 66. Qb3 {[%clk 0:00:02]}  Rh4+ {[%clk 0:00:36]} 67. Qh3 {[%clk 0:00:02]}  Rxh3+ {[%clk 0:00:36]} 68. Kxh3 {[%clk 0:00:03]}  Ra7 {[%clk 0:00:35]} 69. Kg4 {[%clk 0:00:04]}  Rxa2 {[%clk 0:00:34]} 70. Kf4 {[%clk 0:00:05]}  Rd2 {[%clk 0:00:33]} 71. Ke5 {[%clk 0:00:06]}  Rd8 {[%clk 0:00:32]} 72. Ke6 {[%clk 0:00:06]}  Kg6 {[%clk 0:00:32]} 73. Ke7 {[%clk 0:00:07]}  Rd4 {[%clk 0:00:32]} 74. Ke6 {[%clk 0:00:07]}  Re4+ {[%clk 0:00:31]} 75. Kd5 {[%clk 0:00:08]}  Kf5 {[%clk 0:00:31]} 76. Kd6 {[%clk 0:00:08]}  Rd4+ {[%clk 0:00:31]} 77. Kc5 {[%clk 0:00:09]}  Ke5 {[%clk 0:00:30]} 78. Kc6 {[%clk 0:00:09]}  Rd5 {[%clk 0:00:30]} 79. Kc7 {[%clk 0:00:10]}  Rd6 {[%clk 0:00:30]} 80. Kb7 {[%clk 0:00:10]}  Kd5 {[%clk 0:00:30]} 81. Kc7 {[%clk 0:00:11]}  Kc5 {[%clk 0:00:30]} 82. Kc8 {[%clk 0:00:11]}  Rh6 {[%clk 0:00:29]} 83. Kd7 {[%clk 0:00:11]}  Kd5 {[%clk 0:00:29]} 84. Ke7 {[%clk 0:00:12]}  Ra6 {[%clk 0:00:24]} 85. Kf7 {[%clk 0:00:11]}  Ke5 {[%clk 0:00:23]} 86. Kg7 {[%clk 0:00:12]}  Kf5 {[%clk 0:00:24]} 87. Kh7 {[%clk 0:00:06]}  Kg5 {[%clk 0:00:23]} 88. Kg7 {[%clk 0:00:07]}  Ra7+ {[%clk 0:00:22]} 89. Kf8 {[%clk 0:00:07]}  Kf6 {[%clk 0:00:20]} 90. Ke8 {[%clk 0:00:07]}  Rh7 {[%clk 0:00:19]} 91. Kd8 {[%clk 0:00:06]}  Ke6 {[%clk 0:00:19]} 92. Kc8 {[%clk 0:00:07]}  Kd6 {[%clk 0:00:19]} 93. Kb8 {[%clk 0:00:08]}  Kc6 {[%clk 0:00:19]} 94. Ka8 {[%clk 0:00:09]}  Kb6 {[%clk 0:00:19]} 95. Kb8 {[%clk 0:00:10]}  Rh8# {[%clk 0:00:18]} 0-1


[Site "https://www.chess.com"]

[Event "Titled Tuesday Blitz May 23 Late 2023"]
[White "Srdanovic, Jovana"]
[Black "Sarkar, Justin"]
[WhiteFideId "954810"]
[BlackFideId "2010011"]
[WhiteElo "2169"]
[BlackElo "2168"]
[Result "0-1"]
[Round "08"]
[TimeControl "180+2"]
[Date "2023.05.23"]
[WhiteClock "0:00:14"]
[BlackClock "0:00:04"]

1. d4 {[%clk 0:03:00]}  Nf6 {[%clk 0:02:51]} 2. c4 {[%clk 0:03:00]}  b5 {[%clk 0:02:50]} 3. cxb5 {[%clk 0:02:56]}  a6 {[%clk 0:02:50]} 4. e3 {[%clk 0:02:53]}  e6 {[%clk 0:02:32]} 5. Nf3 {[%clk 0:02:50]}  axb5 {[%clk 0:02:22]} 6. Bxb5 {[%clk 0:02:49]}  c5 {[%clk 0:02:18]} 7. O-O {[%clk 0:02:47]}  cxd4 {[%clk 0:02:16]} 8. exd4 {[%clk 0:02:42]}  Be7 {[%clk 0:02:11]} 9. Nc3 {[%clk 0:02:40]}  O-O {[%clk 0:01:59]} 10. d5 {[%clk 0:02:37]}  Bb4 {[%clk 0:01:53]} 11. Bg5 {[%clk 0:02:29]}  Bxc3 {[%clk 0:01:39]} 12. bxc3 {[%clk 0:02:28]}  h6 {[%clk 0:01:38]} 13. Bh4 {[%clk 0:02:02]}  Ba6 {[%clk 0:01:37]} 14. Bxa6 {[%clk 0:02:00]}  Nxa6 {[%clk 0:01:36]} 15. c4 {[%clk 0:01:51]}  Nc5 {[%clk 0:01:31]} 16. Qd4 {[%clk 0:01:40]}  d6 {[%clk 0:01:26]} 17. dxe6 {[%clk 0:01:34]}  fxe6 {[%clk 0:01:15]} 18. Rfd1 {[%clk 0:01:32]}  Ra6 {[%clk 0:01:11]} 19. Ne5 {[%clk 0:01:18]}  Qe8 {[%clk 0:01:00]} 20. Ng4 {[%clk 0:01:14]}  Nxg4 {[%clk 0:00:49]} 21. Qxg4 {[%clk 0:01:14]}  Qf7 {[%clk 0:00:47]} 22. Bg3 {[%clk 0:01:07]}  e5 {[%clk 0:00:44]} 23. Rd2 {[%clk 0:01:00]}  Nb3 {[%clk 0:00:38]} 24. Rdd1 {[%clk 0:00:54]}  Nxa1 {[%clk 0:00:37]} 25. Rxa1 {[%clk 0:00:55]}  Ra4 {[%clk 0:00:36]} 26. h4 {[%clk 0:00:46]}  Rxc4 {[%clk 0:00:32]} 27. Qe2 {[%clk 0:00:36]}  Rfc8 {[%clk 0:00:30]} 28. a4 {[%clk 0:00:30]}  Rc1+ {[%clk 0:00:27]} 29. Rxc1 {[%clk 0:00:31]}  Rxc1+ {[%clk 0:00:27]} 30. Kh2 {[%clk 0:00:32]}  Qc4 {[%clk 0:00:24]} 31. Qd2 {[%clk 0:00:26]}  Qc6 {[%clk 0:00:17]} 32. a5 {[%clk 0:00:24]}  Rc2 {[%clk 0:00:16]} 33. Qd3 {[%clk 0:00:22]}  e4 {[%clk 0:00:07]} 34. Qxd6 {[%clk 0:00:18]}  Qxd6 {[%clk 0:00:06]} 35. Bxd6 {[%clk 0:00:18]}  Rxf2 {[%clk 0:00:06]} 36. Bc5 {[%clk 0:00:16]}  Ra2 {[%clk 0:00:05]} 37. Bb6 {[%clk 0:00:16]}  Kf7 {[%clk 0:00:04]} 38. Kg3 {[%clk 0:00:16]}  Ke6 {[%clk 0:00:04]} 39. Kf4 {[%clk 0:00:17]}  Kd5 {[%clk 0:00:04]} 40. g4 {[%clk 0:00:16]}  Ra3 {[%clk 0:00:03]} 41. g5 {[%clk 0:00:15]}  h5 {[%clk 0:00:03]} 42. g6 {[%clk 0:00:11]}  Rf3+ {[%clk 0:00:02]} 43. Kg5 {[%clk 0:00:11]}  e3 {[%clk 0:00:02]} 44. a6 {[%clk 0:00:09]}  e2 {[%clk 0:00:02]} 45. a7 {[%clk 0:00:09]}  Ra3 {[%clk 0:00:02]} 46. Bf2 {[%clk 0:00:08]}  Rxa7 {[%clk 0:00:02]} 47. Kxh5 {[%clk 0:00:08]}  Ra5 {[%clk 0:00:02]} 48. Kg4 {[%clk 0:00:09]}  Ke4 {[%clk 0:00:02]} 49. h5 {[%clk 0:00:08]}  Ra1 {[%clk 0:00:02]} 50. Kg5 {[%clk 0:00:08]}  Rf1 {[%clk 0:00:01]} 51. Bh4 {[%clk 0:00:07]}  e1=Q {[%clk 0:00:01]} 52. Bxe1 {[%clk 0:00:07]}  Rxe1 {[%clk 0:00:01]} 53. h6 {[%clk 0:00:08]}  Rg1+ {[%clk 0:00:01]} 54. Kh5 {[%clk 0:00:07]}  Rh1+ {[%clk 0:00:02]} 55. Kg5 {[%clk 0:00:08]}  Rxh6 {[%clk 0:00:02]} 56. Kg4 {[%clk 0:00:08]}  Rxg6+ {[%clk 0:00:02]} 57. Kh5 {[%clk 0:00:09]}  Kf5 {[%clk 0:00:03]} 58. Kh4 {[%clk 0:00:09]}  Kf4 {[%clk 0:00:03]} 59. Kh3 {[%clk 0:00:10]}  Rf6 {[%clk 0:00:03]} 60. Kh2 {[%clk 0:00:11]}  Kf3 {[%clk 0:00:03]} 61. Kh1 {[%clk 0:00:12]}  Rg6 {[%clk 0:00:03]} 62. Kh2 {[%clk 0:00:13]}  Rg5 {[%clk 0:00:03]} 63. Kh1 {[%clk 0:00:13]}  Kf2 {[%clk 0:00:03]} 64. Kh2 {[%clk 0:00:14]}  Rh5# {[%clk 0:00:04]} 0-1


[Site "https://www.chess.com"]

[Event "Titled Tuesday Blitz May 23 Late 2023"]
[White "Celestino, Rafael Teixeira"]
[Black "merinasian"]
[WhiteFideId "2108925"]
[WhiteElo "2355"]
[BlackElo "2449"]
[Result "1-0"]
[Round "08"]
[TimeControl "180+2"]
[Date "2023.05.23"]
[WhiteClock "0:00:03"]
[BlackClock "0:00:00"]

1. e4 {[%clk 0:03:00]}  c6 {[%clk 0:02:59]} 2. Nf3 {[%clk 0:03:01]}  d5 {[%clk 0:02:59]} 3. Nc3 {[%clk 0:03:02]}  dxe4 {[%clk 0:02:58]} 4. Nxe4 {[%clk 0:03:03]}  Nf6 {[%clk 0:02:56]} 5. Neg5 {[%clk 0:03:02]}  e6 {[%clk 0:02:08]} 6. Ne5 {[%clk 0:03:01]}  Qd5 {[%clk 0:01:49]} 7. d4 {[%clk 0:02:56]}  Bd6 {[%clk 0:01:40]} 8. Nexf7 {[%clk 0:02:52]}  O-O {[%clk 0:01:38]} 9. c4 {[%clk 0:02:25]}  Qa5+ {[%clk 0:01:35]} 10. Bd2 {[%clk 0:02:25]}  Bb4 {[%clk 0:01:36]} 11. Ne5 {[%clk 0:02:25]}  h6 {[%clk 0:01:28]} 12. Ngf3 {[%clk 0:01:54]}  Ne4 {[%clk 0:01:27]} 13. Bd3 {[%clk 0:01:44]}  Nxd2 {[%clk 0:01:23]} 14. Nxd2 {[%clk 0:01:45]}  c5 {[%clk 0:01:23]} 15. dxc5 {[%clk 0:01:29]}  Qxc5 {[%clk 0:01:16]} 16. Nf3 {[%clk 0:01:25]}  Rd8 {[%clk 0:01:10]} 17. Qe2 {[%clk 0:01:07]}  Bxd2+ {[%clk 0:01:06]} 18. Qxd2 {[%clk 0:00:55]}  Nc6 {[%clk 0:01:01]} 19. O-O {[%clk 0:00:46]}  e5 {[%clk 0:01:00]} 20. Qe2 {[%clk 0:00:39]}  Bg4 {[%clk 0:01:00]} 21. h3 {[%clk 0:00:37]}  Nd4 {[%clk 0:00:56]} 22. Qe4 {[%clk 0:00:36]}  Bxf3 {[%clk 0:00:54]} 23. gxf3 {[%clk 0:00:37]}  Rd6 {[%clk 0:00:40]} 24. b4 {[%clk 0:00:20]}  Qc7 {[%clk 0:00:33]} 25. Kh1 {[%clk 0:00:16]}  Rf6 {[%clk 0:00:31]} 26. Rg1 {[%clk 0:00:10]}  g5 {[%clk 0:00:24]} 27. Rg3 {[%clk 0:00:08]}  Raf8 {[%clk 0:00:20]} 28. Qd5+ {[%clk 0:00:07]}  Kg7 {[%clk 0:00:19]} 29. Re1 {[%clk 0:00:07]}  Re8 {[%clk 0:00:18]} 30. h4 {[%clk 0:00:06]}  Rg6 {[%clk 0:00:16]} 31. Bxg6 {[%clk 0:00:05]}  Kxg6 {[%clk 0:00:16]} 32. hxg5 {[%clk 0:00:06]}  hxg5 {[%clk 0:00:16]} 33. Qe4+ {[%clk 0:00:06]}  Kf6 {[%clk 0:00:13]} 34. Qg4 {[%clk 0:00:06]}  Rg8 {[%clk 0:00:12]} 35. Kg2 {[%clk 0:00:04]}  Nf5 {[%clk 0:00:13]} 36. Rh3 {[%clk 0:00:04]}  Nh4+ {[%clk 0:00:13]} 37. Kg1 {[%clk 0:00:04]}  Ng6 {[%clk 0:00:10]} 38. Rh6 {[%clk 0:00:03]}  Qg7 {[%clk 0:00:09]} 39. Rh5 {[%clk 0:00:02]}  Nf4 {[%clk 0:00:08]} 40. Rh2 {[%clk 0:00:02]}  Qg6 {[%clk 0:00:08]} 41. Rd1 {[%clk 0:00:02]}  Ne6 {[%clk 0:00:00]} 42. c5 {[%clk 0:00:03]} 1-0


[Site "https://www.chess.com"]

[Event "Titled Tuesday Blitz May 23 Late 2023"]
[White "Wizard_of_Odds"]
[Black "Shapiro, Daniel"]
[BlackFideId "2001780"]
[WhiteElo "2439"]
[BlackElo "2339"]
[Result "1-0"]
[Round "08"]
[TimeControl "180+2"]
[Date "2023.05.23"]
[WhiteClock "0:00:04"]
[BlackClock "0:00:00"]

1. Nf3 {[%clk 0:02:58]}  Nf6 {[%clk 0:02:59]} 2. c4 {[%clk 0:02:58]}  e6 {[%clk 0:02:56]} 3. b3 {[%clk 0:02:54]}  d5 {[%clk 0:02:51]} 4. e3 {[%clk 0:02:53]}  c6 {[%clk 0:02:48]} 5. Bb2 {[%clk 0:02:51]}  Bd6 {[%clk 0:02:42]} 6. d4 {[%clk 0:02:50]}  b6 {[%clk 0:02:39]} 7. Bd3 {[%clk 0:02:48]}  Nbd7 {[%clk 0:02:34]} 8. O-O {[%clk 0:02:44]}  O-O {[%clk 0:02:34]} 9. Nbd2 {[%clk 0:02:35]}  Qe7 {[%clk 0:02:30]} 10. Ne5 {[%clk 0:02:34]}  Bb7 {[%clk 0:02:26]} 11. Qc2 {[%clk 0:02:23]}  Rac8 {[%clk 0:02:18]} 12. Rad1 {[%clk 0:02:22]}  c5 {[%clk 0:02:15]} 13. Qb1 {[%clk 0:02:22]}  h6 {[%clk 0:02:03]} 14. Rfe1 {[%clk 0:02:02]}  Rfd8 {[%clk 0:01:59]} 15. h3 {[%clk 0:02:01]}  Nf8 {[%clk 0:01:41]} 16. cxd5 {[%clk 0:01:30]}  exd5 {[%clk 0:01:21]} 17. Bf5 {[%clk 0:01:29]}  Rc7 {[%clk 0:01:14]} 18. Ndf3 {[%clk 0:01:18]}  Ne4 {[%clk 0:01:02]} 19. dxc5 {[%clk 0:01:15]}  bxc5 {[%clk 0:00:48]} 20. Qa1 {[%clk 0:01:08]}  f6 {[%clk 0:00:40]} 21. Ng6 {[%clk 0:01:02]}  Nxg6 {[%clk 0:00:38]} 22. Bxg6 {[%clk 0:01:03]}  Ng5 {[%clk 0:00:20]} 23. Nh4 {[%clk 0:00:33]}  Qe6 {[%clk 0:00:19]} 24. Bf5 {[%clk 0:00:29]}  Qf7 {[%clk 0:00:18]} 25. f4 {[%clk 0:00:23]}  Ne6 {[%clk 0:00:15]} 26. Bg4 {[%clk 0:00:19]}  Re7 {[%clk 0:00:15]} 27. Nf5 {[%clk 0:00:18]}  Qf8 {[%clk 0:00:14]} 28. Nxe7+ {[%clk 0:00:15]}  Qxe7 {[%clk 0:00:13]} 29. Bf3 {[%clk 0:00:15]}  d4 {[%clk 0:00:11]} 30. Bxb7 {[%clk 0:00:14]}  Qxb7 {[%clk 0:00:10]} 31. exd4 {[%clk 0:00:12]}  Nxf4 {[%clk 0:00:10]} 32. d5 {[%clk 0:00:11]}  Nxd5 {[%clk 0:00:10]} 33. Qb1 {[%clk 0:00:08]}  Nf4 {[%clk 0:00:09]} 34. Qe4 {[%clk 0:00:06]}  Qxe4 {[%clk 0:00:07]} 35. Rxe4 {[%clk 0:00:07]}  Ng6 {[%clk 0:00:05]} 36. Rde1 {[%clk 0:00:06]}  Kf7 {[%clk 0:00:04]} 37. Kh1 {[%clk 0:00:04]}  a5 {[%clk 0:00:00]} 38. Rd1 {[%clk 0:00:04]} 1-0


[Site "https://www.chess.com"]